fUSD/lending_fUSD_20250608
["ID","MTS","AMOUNT","RATE_DAILY","PERIOD"]
[364957350,1749351079334,-1573.76,0.00019999,2]
[364957351,1749351079357,-1573.76,0.00019999,2]
[364957352,1749351079379,-1573.76,0.00019999,2]
[364957353,1749351079400,-1573.76,0.00019999,2]
[364957354,1749351079423,-1573.76,0.00019999,2]
[364957355,1749351079444,-1573.76,0.00019999,2]
[364957356,1749351079469,-1573.76,0.00019999,2]
[364957357,1749351079491,-1573.76,0.00019999,2]
[364957358,1749351079514,-1573.76,0.00019999,2]
[364957359,1749351079537,-1573.76,0.00019999,2]
[364957360,1749351079558,-1573.76,0.00019999,2]
[364957361,1749351079580,-1573.76,0.00019999,2]
[364957362,1749351079602,-1573.76,0.00019999,2]
[364957363,1749351079623,-1573.92939967,0.00019999,2]
[364957364,1749351079646,-651.85991177,0.00019999,2]
[364957365,1749351079669,-500.0,0.00019999,2]
[364957366,1749351079693,-500.0,0.00019999,2]
[364957367,1749351079717,-500.0,0.00019999,2]
[364957368,1749351079741,-500.0,0.00019999,2]
[364957369,1749351079766,-500.0,0.00019999,2]
[364957370,1749351079794,-500.0,0.00019999,2]
[364957371,1749351079819,-326.91370241,0.00019999,2]
[364957372,1749351079843,-500.0,0.00019999,2]
[364957373,1749351079864,-500.0,0.00019999,2]
[364957374,1749351079886,-500.0,0.00019999,2]
[364957375,1749351079909,-507.70935464,0.00019999,2]
[364957376,1749351079931,-5662.03542472,0.00019999,2]
[364957377,1749351079954,-240026.24158542,0.0002,2]
[364957378,1749351080589,-480.0,0.00019178,2]
[364957379,1749351080611,-488.92324485,0.00019178,2]
[364957380,1749351080633,-480.0,0.00019178,2]
[364957381,1749351080655,-480.0,0.00019178,2]
[364957382,1749351080678,-500.0,0.00019341,2]
[364957383,1749351080701,-480.0,0.00019342,2]
[364957384,1749351080731,-480.0,0.00019342,2]
[364957385,1749351080753,-480.0,0.00019342,2]
[364957386,1749351080775,-480.0,0.00019506,2]
[364957387,1749351080796,-480.0,0.00019506,2]
[364957388,1749351080817,-480.0,0.00019506,2]
[364957389,1749351080838,-480.0,0.00019671,2]
[364957390,1749351080861,-480.0,0.00019835,2]
[364957391,1749351080883,-228209.70766371,0.0002,2]
[364957392,1749351080904,-632.0,0.0002,2]
[364957393,1749351080925,-485889.36909144,0.0002,2]
[364957396,1749351144046,-580.36,0.00017163,2]
[364957397,1749351144069,-300.0,0.00019177,2]
[364957398,1749351144091,-480.0,0.00019178,2]
[364957399,1749351144114,-1083.82,0.00019178,2]
[364957400,1749351144139,-248.26416094,0.00019178,2]
[364957401,1749351144163,-480.0,0.00019178,2]
[364957402,1749351144188,-480.0,0.00019178,2]
[364957403,1749351144211,-480.0,0.00019178,2]
[364957404,1749351144234,-480.0,0.00019178,2]
[364957405,1749351144260,-1012.39,0.00019178,2]
[364957406,1749351144283,-480.0,0.00019178,2]
[364957407,1749351144309,-480.0,0.00019178,2]
[364957408,1749351144332,-480.0,0.00019178,2]
[364957409,1749351144355,-177.3653164,0.00019178,2]
[364957410,1749351144378,-480.0,0.00019178,2]
[364957411,1749351144400,-480.0,0.00019178,2]
[364957412,1749351144422,-504.84,0.00019178,2]
[364957413,1749351144446,-480.0,0.00019178,2]
[364957414,1749351144469,-480.0,0.00019178,2]
[364957415,1749351144493,-931.9,0.00019178,2]
[364957416,1749351144518,-480.0,0.00019178,2]
[364957417,1749351144541,-488.16973379,0.00019178,2]
[364957418,1749351144565,-598.50071291,0.00019178,2]
[364957419,1749351144588,-480.0,0.00019178,2]
[364957420,1749351144613,-480.0,0.00019178,2]
[364957421,1749351144635,-480.0,0.00019178,2]
[364957422,1749351144657,-351.41609341,0.00019178,2]
[364957423,1749351144681,-1410.86,0.00019178,2]
[364957424,1749351144704,-480.0,0.00019178,2]
[364957425,1749351144724,-480.0,0.00019178,2]
[364957426,1749351144744,-631.51,0.00019178,2]
[364957427,1749351144766,-480.0,0.00019178,2]
[364957428,1749351144786,-487.47,0.00019178,2]
[364957429,1749351144808,-480.0,0.00019178,2]
[364957430,1749351144829,-480.0,0.00019178,2]
[364957431,1749351144849,-480.0,0.00019178,2]
[364957432,1749351144869,-480.0,0.00019178,2]
[364957433,1749351144890,-480.0,0.00019178,2]
[364957434,1749351144915,-480.0,0.00019178,2]
[364957435,1749351144935,-480.0,0.00019178,2]
[364957436,1749351144955,-480.0,0.00019178,2]
[364957437,1749351144975,-436.56462428,0.00019178,2]
[364957438,1749351144995,-480.0,0.00019178,2]
[364957439,1749351145017,-480.0,0.00019178,2]
[364957440,1749351145038,-480.0,0.00019178,2]
[364957441,1749351145059,-480.0,0.00019178,2]
[364957442,1749351145080,-2710.4,0.00019178,2]
[364957443,1749351145100,-480.0,0.00019178,2]
[364957444,1749351145122,-508.95,0.00019178,2]
[364957445,1749351145142,-623.66,0.00019178,2]
[364957446,1749351145164,-480.0,0.00019178,2]
[364957447,1749351145185,-480.0,0.00019178,2]
[364957448,1749351145207,-724.29,0.00019178,2]
[364957449,1749351145227,-1326.94,0.00019178,2]
[364957450,1749351145250,-480.0,0.00019178,2]
[364957451,1749351145274,-480.0,0.00019178,2]
[364957452,1749351145297,-480.0,0.00019178,2]
[364957453,1749351145321,-526.38,0.00019178,2]
[364957454,1749351145343,-1000.0,0.00019178,2]
[364957455,1749351145365,-480.0,0.00019178,2]
[364957456,1749351145387,-480.0,0.00019178,2]
[364957457,1749351145408,-2342.2,0.00019178,2]
[364957458,1749351145431,-429.1019748,0.00019178,2]
[364957459,1749351145454,-576.29,0.00019341,2]
[364957460,1749351145479,-623.66,0.00019341,2]
[364957461,1749351145502,-623.66,0.00019341,2]
[364957462,1749351145524,-623.66,0.00019341,2]
[364957463,1749351145547,-480.0,0.00019342,2]
[364957464,1749351145569,-480.0,0.00019342,2]
[364957465,1749351145592,-1083.82,0.00019342,2]
[364957466,1749351145615,-480.0,0.00019342,2]
[364957467,1749351145638,-480.0,0.00019342,2]
[364957468,1749351145660,-480.0,0.00019342,2]
[364957469,1749351145681,-480.0,0.00019342,2]
[364957470,1749351145703,-1012.39,0.00019342,2]
[364957471,1749351145724,-480.0,0.00019342,2]
[364957472,1749351145746,-480.0,0.00019342,2]
[364957473,1749351145765,-480.0,0.00019342,2]
[364957474,1749351145786,-480.0,0.00019342,2]
[364957475,1749351145807,-504.84,0.00019342,2]
[364957476,1749351145828,-480.0,0.00019342,2]
[364957477,1749351145848,-480.0,0.00019342,2]
[364957478,1749351145869,-931.9,0.00019342,2]
[364957479,1749351145889,-480.0,0.00019342,2]
[364957480,1749351145910,-480.0,0.00019342,2]
[364957481,1749351145930,-480.0,0.00019342,2]
[364957482,1749351145953,-1410.86,0.00019342,2]
[364957483,1749351145975,-480.0,0.00019342,2]
[364957484,1749351145995,-480.0,0.00019342,2]
[364957485,1749351146014,-631.51,0.00019342,2]
[364957486,1749351146034,-480.0,0.00019342,2]
[364957487,1749351146053,-487.47,0.00019342,2]
[364957488,1749351146075,-480.0,0.00019342,2]
[364957489,1749351146098,-480.0,0.00019342,2]
[364957490,1749351146119,-308.9398225,0.00019342,2]
[364957491,1749351146141,-286.151435,0.00019342,2]
[364957492,1749351146163,-480.0,0.00019342,2]
[364957493,1749351146186,-480.0,0.00019342,2]
[364957494,1749351146209,-480.0,0.00019342,2]
[364957495,1749351146233,-480.0,0.00019342,2]
[364957496,1749351146259,-480.0,0.00019342,2]
[364957497,1749351146280,-480.0,0.00019342,2]
[364957498,1749351146303,-480.0,0.00019342,2]
[364957499,1749351146327,-480.0,0.00019342,2]
[364957500,1749351146348,-480.0,0.00019342,2]
[364957501,1749351146370,-2710.4,0.00019342,2]
[364957502,1749351146393,-480.0,0.00019342,2]
[364957503,1749351146416,-508.95,0.00019342,2]
[364957504,1749351146439,-480.0,0.00019342,2]
[364957505,1749351146461,-480.0,0.00019342,2]
[364957506,1749351146482,-724.29,0.00019342,2]
[364957507,1749351146503,-1326.94,0.00019342,2]
[364957508,1749351146526,-480.0,0.00019342,2]
[364957509,1749351146550,-480.0,0.00019342,2]
[364957510,1749351146572,-480.0,0.00019342,2]
[364957511,1749351146595,-526.38,0.00019342,2]
[364957512,1749351146616,-1000.0,0.00019342,2]
[364957513,1749351146636,-480.0,0.00019342,2]
[364957514,1749351146657,-480.0,0.00019342,2]
[364957515,1749351146679,-2342.2,0.00019342,2]
[364957516,1749351146702,-580.36,0.00019426,2]
[364957517,1749351146725,-151.0,0.00019494,2]
[364957518,1749351146746,-1957.856,0.00019494,2]
[364957519,1749351146767,-500.0,0.00019505,2]
[364957520,1749351146787,-308.69,0.00019505,2]
[364957521,1749351146810,-576.29,0.00019505,2]
[364957522,1749351146832,-623.66,0.00019505,2]
[364957523,1749351146853,-819.24702973,0.00019505,2]
[364957524,1749351146874,-582.57743239,0.00019506,2]
[364957525,1749351146897,-1083.82,0.00019506,2]
[364957526,1749351146918,-480.0,0.00019506,2]
[364957527,1749351146941,-480.0,0.00019506,2]
[364957528,1749351146963,-265.99529492,0.00019506,2]
[364957529,1749351146986,-1012.39,0.00019506,2]
[364957530,1749351147010,-480.0,0.00019506,2]
[364957531,1749351147032,-480.0,0.00019506,2]
[364957532,1749351147054,-368.92753529,0.00019506,2]
[364957533,1749351147077,-480.0,0.00019506,2]
[364957534,1749351147100,-504.84,0.00019506,2]
[364957535,1749351147122,-480.0,0.00019506,2]
[364957536,1749351147143,-480.0,0.00019506,2]
[364957537,1749351147340,-931.9,0.00019506,2]
[364957538,1749351147362,-480.0,0.00019506,2]
[364957539,1749351147382,-480.0,0.00019506,2]
[364957540,1749351147402,-480.0,0.00019506,2]
[364957541,1749351147423,-1410.86,0.00019506,2]
[364957542,1749351147445,-185.14425071,0.00019506,2]
[364957543,1749351147465,-480.0,0.00019506,2]
[364957544,1749351147485,-631.51,0.00019506,2]
[364957545,1749351147509,-480.0,0.00019506,2]
[364957546,1749351147532,-487.47,0.00019506,2]
[364957547,1749351147553,-480.0,0.00019506,2]
[364957548,1749351147573,-480.0,0.00019506,2]
[364957549,1749351147595,-286.151435,0.00019506,2]
[364957550,1749351147615,-616.62312602,0.00019506,2]
[364957551,1749351147636,-480.0,0.00019506,2]
[364957552,1749351147657,-480.0,0.00019506,2]
[364957553,1749351147679,-480.0,0.00019506,2]
[364957554,1749351147700,-223.48005799,0.00019506,2]
[364957555,1749351147720,-480.0,0.00019506,2]
[364957556,1749351147742,-480.0,0.00019506,2]
[364957557,1749351147767,-480.0,0.00019506,2]
[364957558,1749351147789,-480.0,0.00019506,2]
[364957559,1749351147812,-2710.4,0.00019506,2]
[364957560,1749351147834,-480.0,0.00019506,2]
[364957561,1749351147856,-508.95,0.00019506,2]
[364957562,1749351147876,-480.0,0.00019506,2]
[364957563,1749351147897,-480.0,0.00019506,2]
[364957564,1749351147918,-724.29,0.00019506,2]
[364957565,1749351147939,-1326.94,0.00019506,2]
[364957566,1749351147959,-480.0,0.00019506,2]
[364957567,1749351147982,-480.0,0.00019506,2]
[364957568,1749351148004,-480.0,0.00019506,2]
[364957569,1749351148027,-526.38,0.00019506,2]
[364957570,1749351148048,-1000.0,0.00019506,2]
[364957571,1749351148068,-480.0,0.00019506,2]
[364957572,1749351148090,-480.0,0.00019506,2]
[364957573,1749351148110,-2342.2,0.00019506,2]
[364957574,1749351148132,-2030.296672,0.00019549,2]
[364957575,1749351148155,-1011.847328,0.00019604,2]
[364957576,1749351148175,-623.66,0.00019669,2]
[364957577,1749351148196,-500.0,0.0001967,2]
[364957578,1749351148218,-500.0,0.0001967,2]
[364957579,1749351148241,-500.0,0.0001967,2]
[364957580,1749351148267,-503.12730933,0.0001967,2]
[364957581,1749351148289,-150.30276158,0.0001967,2]
[364957582,1749351148310,-307.67584762,0.0001967,2]
[364957583,1749351148333,-500.0,0.0001967,2]
[364957584,1749351148355,-500.0,0.0001967,2]
[364957585,1749351148378,-500.0,0.0001967,2]
[364957586,1749351148399,-500.0,0.0001967,2]
[364957587,1749351148422,-500.0,0.0001967,2]
[364957588,1749351148445,-500.0,0.0001967,2]
[364957589,1749351148466,-500.0,0.0001967,2]
[364957590,1749351148487,-500.0,0.0001967,2]
[364957591,1749351148509,-500.0,0.0001967,2]
[364957592,1749351148531,-500.0,0.0001967,2]
[364957593,1749351148553,-500.0,0.0001967,2]
[364957594,1749351148574,-500.0,0.0001967,2]
[364957595,1749351148597,-500.0,0.0001967,2]
[364957596,1749351148619,-500.0,0.0001967,2]
[364957597,1749351148641,-500.0,0.0001967,2]
[364957598,1749351148662,-500.0,0.0001967,2]
[364957599,1749351148688,-500.0,0.0001967,2]
[364957600,1749351148709,-500.0,0.0001967,2]
[364957601,1749351148733,-500.0,0.0001967,2]
[364957602,1749351148754,-500.0,0.0001967,2]
[364957603,1749351148776,-500.0,0.0001967,2]
[364957604,1749351148797,-500.0,0.0001967,2]
[364957605,1749351148818,-354.79765422,0.0001967,2]
[364957606,1749351148838,-500.0,0.0001967,2]
[364957607,1749351148861,-500.0,0.0001967,2]
[364957608,1749351148884,-500.0,0.0001967,2]
[364957609,1749351148907,-500.0,0.0001967,2]
[364957610,1749351148928,-500.0,0.0001967,2]
[364957611,1749351148951,-500.0,0.0001967,2]
[364957612,1749351148971,-500.0,0.0001967,2]
[364957613,1749351148992,-500.0,0.0001967,2]
[364957614,1749351149017,-500.0,0.0001967,2]
[364957615,1749351149037,-500.0,0.0001967,2]
[364957616,1749351149057,-500.0,0.0001967,2]
[364957617,1749351149076,-500.0,0.0001967,2]
[364957618,1749351149097,-500.0,0.0001967,2]
[364957619,1749351149117,-500.0,0.0001967,2]
[364957620,1749351149138,-364.15060194,0.0001967,2]
[364957621,1749351149159,-158.572099,0.0001967,2]
[364957622,1749351149179,-500.0,0.0001967,2]
[364957623,1749351149200,-150.0,0.0001967,2]
[364957624,1749351149223,-500.0,0.0001967,2]
[364957625,1749351149245,-500.0,0.0001967,2]
[364957626,1749351149269,-500.0,0.0001967,2]
[364957627,1749351149289,-500.0,0.0001967,2]
[364957628,1749351149310,-500.0,0.0001967,2]
[364957629,1749351149337,-576.29,0.0001967,2]
[364957630,1749351149356,-506.11733586,0.0001967,2]
[364957631,1749351149381,-576.29,0.0001967,2]
[364957632,1749351149402,-576.29,0.0001967,2]
[364957633,1749351149424,-222.06910025,0.0001967,2]
[364957634,1749351149446,-500.0,0.0001967,2]
[364957635,1749351149466,-415.11934602,0.0001967,2]
[364957636,1749351149486,-623.66,0.0001967,2]
[364957637,1749351149509,-500.0,0.0001967,2]
[364957638,1749351149530,-500.0,0.0001967,2]
[364957639,1749351149552,-471.92402244,0.0001967,2]
[364957640,1749351149574,-480.0,0.00019671,2]
[364957641,1749351149596,-1083.82,0.00019671,2]
[364957642,1749351149619,-480.0,0.00019671,2]
[364957643,1749351149641,-480.0,0.00019671,2]
[364957644,1749351149661,-1012.39,0.00019671,2]
[364957645,1749351149682,-480.0,0.00019671,2]
[364957646,1749351149702,-480.0,0.00019671,2]
[364957647,1749351149724,-480.0,0.00019671,2]
[364957648,1749351149745,-504.84,0.00019671,2]
[364957649,1749351149766,-596.11458097,0.00019671,2]
[364957650,1749351149786,-931.9,0.00019671,2]
[364957651,1749351149813,-480.0,0.00019671,2]
[364957652,1749351149836,-480.0,0.00019671,2]
[364957653,1749351149856,-480.0,0.00019671,2]
[364957654,1749351149877,-480.0,0.00019671,2]
[364957655,1749351149900,-1410.86,0.00019671,2]
[364957656,1749351149920,-480.0,0.00019671,2]
[364957657,1749351149942,-631.51,0.00019671,2]
[364957658,1749351149964,-480.0,0.00019671,2]
[364957659,1749351149987,-487.47,0.00019671,2]
[364957660,1749351150009,-480.0,0.00019671,2]
[364957661,1749351150032,-480.0,0.00019671,2]
[364957662,1749351150053,-286.151435,0.00019671,2]
[364957663,1749351150075,-480.0,0.00019671,2]
[364957664,1749351150099,-480.0,0.00019671,2]
[364957665,1749351150121,-480.0,0.00019671,2]
[364957666,1749351150143,-480.0,0.00019671,2]
[364957667,1749351150167,-480.0,0.00019671,2]
[364957668,1749351150188,-480.0,0.00019671,2]
[364957669,1749351150210,-480.0,0.00019671,2]
[364957670,1749351150232,-2710.4,0.00019671,2]
[364957671,1749351150258,-364.83227495,0.00019671,2]
[364957672,1749351150280,-508.95,0.00019671,2]
[364957673,1749351150302,-480.0,0.00019671,2]
[364957674,1749351150326,-480.0,0.00019671,2]
[364957675,1749351150350,-724.29,0.00019671,2]
[364957676,1749351150373,-1326.94,0.00019671,2]
[364957677,1749351150396,-480.0,0.00019671,2]
[364957678,1749351150419,-480.0,0.00019671,2]
[364957679,1749351150440,-480.0,0.00019671,2]
[364957680,1749351150463,-526.38,0.00019671,2]
[364957681,1749351150485,-1000.0,0.00019671,2]
[364957682,1749351150507,-463.34559474,0.00019671,2]
[364957704,1749351611961,204.0,0.00016878,2]
[364957727,1749352119864,160.3,0.00017,120]
[364957737,1749352231566,-651.85991177,0.00018,2]
[364957738,1749352231578,-200.0,0.00018115,2]
[364957739,1749352231588,-150.0,0.00018156,7]
[364957740,1749352231598,-207.59,0.00018281,2]
[364957741,1749352231608,-74.54325765,0.00018283,2]
[364957742,1749352231628,-843.2866551,0.00018283,2]
[364957743,1749352231672,-82.17008725,0.00018283,2]
[364957744,1749352231682,-700.50825827,0.00018308,2]
[364957745,1749352231725,-426.845,0.00018308,2]
[364957746,1749352231786,-72.64674173,0.00018308,2]
[364957747,1749352231796,-427.35325827,0.00018309,2]
[364957748,1749352231886,-6140.97674173,0.00018309,2]
[364957749,1749352231895,-300.0,0.00018313,2]
[364957750,1749352231905,-596.64,0.00018315,2]
[364957751,1749352231915,-596.59259666,0.00018409,2]
[364957752,1749352231924,-3370.77448626,0.00018477,2]
[364958111,1749352240333,-800.01223158,0.00018477,2]
[364958112,1749352240345,-8.26328216,0.00018477,2]
[364958113,1749352240355,-570.61,0.00018555,2]
[364958114,1749352240365,-250.0,0.00018555,2]
[364958115,1749352240374,-71.73858191,0.00018573,2]
[364958116,1749352240604,-132.26141809,0.00018573,2]
[364958117,1749352240615,-2508.36490401,0.00018583,2]
[364958118,1749352240639,-765.10509599,0.00018583,2]
[364958119,1749352240649,-168.63,0.00018688,2]
[364958120,1749352240659,-218.99253214,0.000187,2]
[364958121,1749352240668,-454.65,0.00018781,2]
[364958122,1749352240678,-789.73053416,0.00018781,2]
[364958126,1749352242950,-129.36946584,0.00018781,2]
[364958127,1749352242960,-454.65,0.00018781,2]
[364958128,1749352242970,-454.65,0.00018878,2]
[364958129,1749352242981,-207.4,0.00018898,2]
[364958130,1749352242990,-10.54053416,0.000189,6]
[364958137,1749352251519,-189.45946584,0.000189,6]
[364958138,1749352251529,-64.78898217,0.00018909,2]
[364958139,1749352253233,-2762.18302422,0.00018909,2]
[364958140,1749352253244,-18019.96781626,0.0001899,2]
[364958141,1749352253255,-500.0,0.00018999,2]
[364958142,1749352253265,-500.0,0.00018999,2]
[364958143,1749352253275,-500.0,0.00018999,2]
[364958144,1749352253285,-450.47976542,0.00018999,2]
[364958145,1749352253295,-500.0,0.00018999,2]
[364958146,1749352253306,-506.22673934,0.00019,2]
[364958147,1749352253832,-6832.19342704,0.00019,2]
[364958148,1749352353449,580.76,0.00016418,2]
[364958151,1749352483030,150.0,0.00017053,2]
[364958152,1749352691708,204.0,0.00016573,2]
[364958170,1749353245315,162.16,0.00013699,2]
[364958303,1749353431929,-204.0,0.00017287,2]
[364958304,1749353431942,-831.401546,0.00017908,2]
[364958305,1749353431957,-1200.0,0.00017999,2]
[364958306,1749353431970,-300.0,0.00017999,2]
[364958307,1749353431982,-11164.37987716,0.00018,2]
[364958332,1749353438455,-2519.68962331,0.00018,2]
[364958356,1749353446053,-300.0,0.00017999,2]
[364958357,1749353446064,-889.23010292,0.00018,2]
[364958359,1749353625322,362.4,0.00016109,2]
[364958360,1749353625348,189.32,0.00016109,2]
[364958385,1749354127717,5252.856391,7.945e-05,2]
[364958389,1749354141552,2557.823609,0.00012858,2]
[364958390,1749354141574,8000.0,0.00012858,2]
[364958391,1749354141596,1942.176391,0.00012858,2]
[364958392,1749354142333,476.99517658,0.00012893,2]
[364958394,1749354164555,200.0,0.00016965,2]
[364958410,1749354323415,171.43,0.00014193,2]
[364958413,1749354357228,344.87,0.00013699,2]
[364958420,1749354418241,252.80590492,0.00016987,2]
[364958457,1749354631962,-204.0,0.00017135,2]
[364958458,1749354631972,-160.92107789,0.00017135,2]
[364958459,1749354631983,-250.0,0.0001765,2]
[364958460,1749354631995,-1415.13,0.00017659,2]
[364958461,1749354632006,-160.10135637,0.00017692,2]
[364958462,1749354632016,-1730.72,0.00017792,2]
[364958463,1749354632026,-3780.46,0.00017867,2]
[364958464,1749354632037,-1200.0,0.00017895,2]
[364958465,1749354632049,-300.0,0.00017896,2]
[364958466,1749354632060,-300.0,0.00017897,2]
[364958467,1749354632071,-11057.42,0.00017898,2]
[364958468,1749354632082,-640.7,0.0001791,2]
[364958469,1749354632092,-150.0,0.00017916,7]
[364958470,1749354632102,-1258.23,0.00017922,2]
[364958471,1749354632112,-1000.0,0.00017958,2]
[364958472,1749354632122,-151.0,0.00017989,2]
[364958473,1749354632132,-150.99,0.00017999,2]
[364958474,1749354632142,-7279.75,0.00017999,2]
[364958475,1749354632152,-3557.51,0.00017999,2]
[364958476,1749354632162,-298.61,0.00017999,2]
[364958477,1749354632172,-500.0,0.00017999,2]
[364958478,1749354632182,-899.89436892,0.00018,2]
[364958479,1749354632192,-1413.27,0.00018,2]
[364958480,1749354632201,-1547.61,0.00018,2]
[364958481,1749354632211,-3063.57,0.00018,2]
[364958482,1749354632220,-9999.99,0.00018,2]
[364958483,1749354632231,-19716.46407222,0.00018,2]
[364958484,1749354632240,-393.81,0.00018,2]
[364958485,1749354632250,-150.99,0.00018,2]
[364958486,1749354632259,-9999.99,0.00018,2]
[364958487,1749354632269,-299.99,0.00018,4]
[364958488,1749354632279,-2161.93,0.00018,2]
[364958489,1749354632291,-796.51,0.00018,2]
[364958490,1749354632301,-454.65,0.00018,2]
[364958491,1749354632310,-454.65,0.00018,2]
[364958492,1749354632319,-459.61,0.00018,2]
[364958493,1749354632329,-908.58,0.00018,2]
[364958494,1749354632338,-151.0,0.00018044,2]
[364958495,1749354632348,-151.0,0.00018099,2]
[364958496,1749354632357,-500.0,0.0001811,2]
[364958497,1749354632367,-225.74999279,0.00018154,2]
[364958498,1749354632378,-461.04,0.000182,2]
[364958499,1749354632388,-454.65,0.000182,2]
[364958500,1749354632397,-454.65,0.000182,2]
[364958501,1749354632407,-150.0,0.00018233,2]
[364958502,1749354632417,-150.0,0.00018233,2]
[364958503,1749354632427,-150.0,0.00018233,2]
[364958504,1749354632438,-168.63,0.00018262,2]
[364958506,1749354632447,-307.38,0.00018356,2]
[364958508,1749354632457,-454.65,0.000184,2]
[364958510,1749354632467,-163.27,0.000184,2]
[364958512,1749354632476,-796.51,0.000184,2]
[364958514,1749354632486,-454.65,0.000184,2]
[364958516,1749354632496,-163.25,0.000184,2]
[364958518,1749354632506,-500.0,0.000184,2]
[364958521,1749354632516,-150.0,0.000184,2]
[364958524,1749354632526,-500.0,0.000184,2]
[364958527,1749354632540,-150.0,0.000184,2]
[364958529,1749354632554,-500.0,0.000184,2]
[364958531,1749354632565,-150.0,0.000184,2]
[364958533,1749354632576,-500.0,0.000184,2]
[364958536,1749354632585,-151.96540863,0.000184,2]
[364958538,1749354632595,-151.54656898,0.000184,2]
[364958541,1749354632604,-150.0,0.000184,2]
[364958544,1749354632614,-500.0,0.00018427,2]
[364958547,1749354632624,-150.0,0.00018427,2]
[364958549,1749354632634,-506.57205036,0.00018427,2]
[364958552,1749354632645,-158.19636138,0.00018427,2]
[364958554,1749354632655,-500.0,0.00018427,2]
[364958556,1749354632665,-150.0,0.00018427,2]
[364958558,1749354632674,-500.0,0.00018427,2]
[364958560,1749354632684,-263.6366522,0.00018427,2]
[364958562,1749354632693,-150.0,0.00018452,2]
[364958564,1749354632703,-500.0,0.00018455,2]
[364958566,1749354632713,-150.0,0.00018455,2]
[364958568,1749354632722,-500.0,0.00018455,2]
[364958570,1749354632732,-170.70924631,0.00018455,2]
[364958572,1749354632742,-500.0,0.00018455,2]
[364958574,1749354632751,-503.0,0.00018466,2]
[364958576,1749354632761,-500.0,0.00018482,2]
[364958577,1749354632771,-150.0,0.00018482,2]
[364958578,1749354632780,-413.40055002,0.00018482,2]
[364958579,1749354632832,-500.0,0.00017999,2]
[364958580,1749354632842,-500.0,0.00017999,2]
[364958581,1749354632851,-500.0,0.00017999,2]
[364958582,1749354632861,-86.59944998,0.00018482,2]
[364958583,1749354632871,-500.0,0.00018482,2]
[364958584,1749354632880,-467.49,0.000185,2]
[364958585,1749354632889,-914.92,0.000185,2]
[364958586,1749354632900,-352.44532169,0.0001851,2]
[364958587,1749354632912,-150.0,0.0001851,2]
[364958588,1749354632922,-500.0,0.0001851,2]
[364958589,1749354632931,-500.0,0.0001851,2]
[364958590,1749354632941,-215.3365529,0.00018537,2]
[364958591,1749354632951,-509.58228145,0.00018537,2]
[364958592,1749354632960,-500.0,0.00018537,2]
[364958593,1749354632970,-7547.80641516,0.0001859,2]
[364958594,1749354632979,-300.0,0.000186,2]
[364958595,1749354632990,-150.0,0.000186,2]
[364958597,1749354632999,-500.0,0.000186,2]